[Event "Rapide Futuroscope"]
[Site "Futuroscope, France"]
[Date "2019.12.01"]
[Round "5.1"]
[White "Sochacki, Christophe"]
[Black "Lagarde, Maxime"]
[Result "1-0"]
[TimeControl "15' + 3''"]
[WhiteElo "2484"]
[BlackElo "2657"]

1. Nf3 {[%clk 00:14:59]} {[%emt 00:00:07]} Nf6 {[%clk 00:15:01]} {[%emt
00:00:07]} 2. c4 {[%clk 00:14:54]} {[%emt 00:00:07]} g6 {[%clk 00:15:00]}
{[%emt 00:00:03]} 3. Nc3 {[%clk 00:14:16]} {[%emt 00:00:41]} Bg7 {[%clk
00:15:01]} {[%emt 00:00:02]} 4. e4 {[%clk 00:14:08]} {[%emt 00:00:11]} O-O
{[%clk 00:14:45]} {[%emt 00:00:19]} 5. e5 {[%clk 00:13:06]} {[%emt 00:01:05]}
Ne8 {[%clk 00:13:20]} {[%emt 00:01:28]} 6. d4 {[%clk 00:13:03]} {[%emt
00:00:06]} d6 {[%clk 00:13:19]} {[%emt 00:00:04]} 7. Bf4 {[%clk 00:12:28]}
{[%emt 00:00:37]} Nc6 {[%clk 00:12:10]} {[%emt 00:01:12]} 8. exd6 {[%clk
00:11:43]} {[%emt 00:00:48]} cxd6 {[%clk 00:11:40]} {[%emt 00:00:33]} 9. Be2
{[%clk 00:11:12]} {[%emt 00:00:34]} Bg4 {[%clk 00:11:31]} {[%emt 00:00:12]} 10.
Be3 {[%clk 00:10:36]} {[%emt 00:00:40]} Rc8 {[%clk 00:09:06]} {[%emt 00:02:28]}
11. O-O {[%clk 00:08:46]} {[%emt 00:01:52]} a6 {[%clk 00:08:36]} {[%emt
00:00:33]} 12. Rc1 {[%clk 00:08:35]} {[%emt 00:00:15]} Nf6 {[%clk 00:08:25]}
{[%emt 00:00:14]} 13. h3 {[%clk 00:08:31]} {[%emt 00:00:06]} Bxf3 {[%clk
00:08:17]} {[%emt 00:00:11]} 14. Bxf3 {[%clk 00:08:32]} {[%emt 00:00:02]} Nd7
{[%clk 00:08:19]} {[%emt 00:00:01]} 15. b3 {[%clk 00:07:39]} {[%emt 00:00:57]}
e5 {[%clk 00:06:52]} {[%emt 00:01:28]} 16. dxe5 {[%clk 00:06:15]} {[%emt
00:01:28]} dxe5 {[%clk 00:06:54]} 17. Bxc6 {[%clk 00:05:34]} {[%emt 00:00:44]}
bxc6 {[%clk 00:06:47]} {[%emt 00:00:11]} 18. Qd6 {[%clk 00:05:06]} {[%emt
00:00:31]} f5 {[%clk 00:05:32]} {[%emt 00:01:18]} 19. Rfd1 {[%clk 00:04:53]}
{[%emt 00:00:17]} Rf7 {[%clk 00:05:34]} {[%emt 00:00:01]} 20. Na4 {[%clk
00:04:23]} {[%emt 00:00:32]} Qe8 {[%clk 00:05:30]} {[%emt 00:00:07]} 21. Nb6
{[%clk 00:03:42]} {[%emt 00:00:44]} Nxb6 {[%clk 00:04:28]} {[%emt 00:01:05]} 22.
Bxb6 {[%clk 00:03:44]} {[%emt 00:00:02]} Bf8 {[%clk 00:03:43]} {[%emt
00:00:48]} 23. Qd2 {[%clk 00:03:46]} {[%emt 00:00:01]} c5 {[%clk 00:03:29]}
{[%emt 00:00:17]} 24. Ba5 {[%clk 00:03:19]} {[%emt 00:00:29]} e4 {[%clk
00:02:42]} {[%emt 00:00:50]} 25. Rc2 {[%clk 00:03:11]} {[%emt 00:00:11]} f4
{[%clk 00:02:29]} {[%emt 00:00:16]} 26. Qd5 {[%clk 00:02:43]} {[%emt 00:00:32]}
e3 {[%clk 00:02:27]} {[%emt 00:00:05]} 27. Re1 {[%clk 00:02:24]} {[%emt
00:00:22]} Bg7 {[%clk 00:02:04]} {[%emt 00:00:26]} 28. fxe3 {[%clk 00:02:22]}
{[%emt 00:00:05]} fxe3 {[%clk 00:01:55]} {[%emt 00:00:12]} 29. Bc3 {[%clk
00:01:58]} {[%emt 00:00:28]} Rd8 {[%clk 00:01:25]} {[%emt 00:00:32]} 30. Qxc5
{[%clk 00:02:00]} Qe4 {[%clk 00:01:27]} {[%emt 00:00:01]} 31. Qa5 {[%clk
00:01:42]} {[%emt 00:00:21]} Re8 {[%clk 00:00:42]} {[%emt 00:00:48]} 32. Ree2
{[%emt 00:00:01]} Bh6 {[%clk 00:00:23]} {[%emt 00:00:22]} 33. Qb6 {[%clk
00:00:59]} {[%emt 00:00:48]} Rf2 {[%clk 00:00:14]} {[%emt 00:00:12]} 34. Rxf2
{[%clk 00:00:44]} {[%emt 00:00:19]} exf2+ {[%clk 00:00:15]} {[%emt 00:00:02]}
35. Rxf2 {[%clk 00:00:45]} {[%emt 00:00:01]} Be3 {[%clk 00:00:15]} {[%emt
00:00:02]} 36. Qf6 {[%clk 00:00:40]} {[%emt 00:00:08]} Bxf2+ {[%clk 00:00:17]}
{[%emt 00:00:02]} 37. Kh2 {[%clk 00:00:11]} {[%emt 00:00:32]} Qe7 {[%clk
00:00:13]} {[%emt 00:00:08]} 38. Qxf2 {[%clk 00:00:09]} {[%emt 00:00:05]} Qd6+
{[%clk 00:00:11]} {[%emt 00:00:04]} 39. Kg1 {[%clk 00:00:08]} {[%emt 00:00:05]}
Rf8 {[%clk 00:00:11]} {[%emt 00:00:03]} 40. Qe3 {[%clk 00:00:06]} {[%emt
00:00:05]} Qd1+ {[%clk 00:00:07]} {[%emt 00:00:06]} 41. Kh2 {[%clk 00:00:08]}
Qd6+ {[%clk 00:00:10]} {[%emt 00:00:01]} 42. Kg1 {[%clk 00:00:11]} Qd1+ {[%clk
00:00:08]} {[%emt 00:00:04]} 43. Kh2 {[%clk 00:00:13]} {[%emt 00:00:01]} Qd6+
{[%clk 00:00:07]} {[%emt 00:00:04]} 44. Kg1 {[%clk 00:00:06]} {[%emt 00:00:10]}
Kf7 {[%clk 00:00:06]} {[%emt 00:00:03]} 45. Qf3+ {[%clk 00:00:07]} {[%emt
00:00:03]} Ke8 {[%clk 00:00:07]} {[%emt 00:00:02]} 46. Qa8+ {[%clk 00:00:07]}
{[%emt 00:00:03]} Kd7 {[%clk 00:00:07]} {[%emt 00:00:03]} 47. Qb7+ {[%clk
00:00:09]} {[%emt 00:00:01]} Ke6 {[%clk 00:00:06]} {[%emt 00:00:04]} 48. Qe4+
{[%clk 00:00:06]} {[%emt 00:00:06]} Kd7 {[%clk 00:00:06]} {[%emt 00:00:03]} 49.
Be5 {[%clk 00:00:08]} {[%emt 00:00:01]} Qc5+ {[%clk 00:00:07]} {[%emt
00:00:02]} 50. Kh2 {[%clk 00:00:09]} {[%emt 00:00:02]} Re8 {[%clk 00:00:09]}
{[%emt 00:00:02]} 51. Qb7+ {[%clk 00:00:10]} {[%emt 00:00:01]} Ke6 {[%clk
00:00:10]} {[%emt 00:00:02]} 52. Bf4 {[%clk 00:00:09]} {[%emt 00:00:04]} Qc8
{[%clk 00:00:07]} {[%emt 00:00:06]} 53. Qxh7 {[%clk 00:00:09]} {[%emt
00:00:03]} Kf5 {[%clk 00:00:08]} {[%emt 00:00:03]} 54. Qf7+ {[%clk 00:00:09]}
{[%emt 00:00:03]} Ke4 {[%clk 00:00:10]} 55. Bg3 {[%clk 00:00:10]} {[%emt
00:00:02]} Kd3 {[%clk 00:00:10]} {[%emt 00:00:02]} 56. Qxg6+ {[%clk 00:00:11]}
{[%emt 00:00:02]} Kc3 {[%clk 00:00:13]} 57. Qb1 {[%clk 00:00:10]} {[%emt
00:00:04]} Qe6 {[%clk 00:00:12]} {[%emt 00:00:05]} 58. Qc1+ {[%clk 00:00:09]}
{[%emt 00:00:03]} Kb4 {[%clk 00:00:10]} {[%emt 00:00:02]} 59. Qd2+ {[%clk
00:00:08]} {[%emt 00:00:07]} Kc5 {[%clk 00:00:09]} {[%emt 00:00:04]} 60. Qa5+
{[%clk 00:00:08]} {[%emt 00:00:04]} Kd4 {[%clk 00:00:10]} {[%emt 00:00:01]} 61.
c5 {[%clk 00:00:06]} {[%emt 00:00:06]} Qc6 {[%clk 00:00:07]} {[%emt 00:00:05]}
62. Qb4+ {[%emt 00:00:04]} Kd3 {[%clk 00:00:06]} {[%emt 00:00:03]} 63. Qc4+
{[%clk 00:00:07]} {[%emt 00:00:02]} Kd2 {[%clk 00:00:06]} {[%emt 00:00:02]} 64.
Bf4+ {[%clk 00:00:09]} {[%emt 00:00:02]} Ke1 {[%clk 00:00:05]} {[%emt
00:00:02]} 65. Kg1 {[%clk 00:00:09]} {[%emt 00:00:05]} Rd8 {[%clk 00:00:05]}
{[%emt 00:00:04]} 66. Qf1# {[%emt 00:00:01]} 1-0

[Event "Rapide Futuroscope"]
[Site "Futuroscope, France"]
[Date "2019.12.01"]
[Round "5.4"]
[White "Demuth, Adrien"]
[Black "Mariette, Lucas"]
[Result "1-0"]
[TimeControl "15' + 3''"]
[WhiteElo "2502"]
[BlackElo "2290"]

1. Nf3 {[%clk 00:15:03]} Nf6 {[%clk 00:15:05]} {[%emt 00:00:02]} 2. g3 {[%clk
00:15:05]} {[%emt 00:00:02]} g6 {[%clk 00:15:07]} {[%emt 00:00:02]} 3. b3
{[%clk 00:15:07]} Bg7 {[%clk 00:15:08]} 4. Bb2 {[%clk 00:15:10]} {[%emt
00:00:01]} O-O {[%clk 00:14:57]} {[%emt 00:00:14]} 5. Bg2 {[%clk 00:15:11]}
{[%emt 00:00:01]} d5 {[%clk 00:14:55]} {[%emt 00:00:05]} 6. c4 {[%clk
00:15:13]} {[%emt 00:00:02]} c5 {[%clk 00:14:22]} {[%emt 00:00:35]} 7. cxd5
{[%clk 00:15:07]} {[%emt 00:00:09]} Nxd5 {[%clk 00:13:54]} {[%emt 00:00:30]} 8.
Bxg7 {[%clk 00:15:08]} {[%emt 00:00:03]} Kxg7 {[%clk 00:13:55]} {[%emt
00:00:02]} 9. O-O {[%clk 00:15:07]} {[%emt 00:00:03]} Nc6 {[%clk 00:12:43]}
{[%emt 00:01:15]} 10. d4 {[%clk 00:15:09]} {[%emt 00:00:02]} cxd4 {[%clk
00:12:12]} {[%emt 00:00:34]} 11. Nxd4 {[%clk 00:15:08]} {[%emt 00:00:04]} Nxd4
{[%clk 00:10:26]} {[%emt 00:01:49]} 12. Qxd4+ {[%clk 00:15:09]} {[%emt
00:00:02]} Nf6 {[%clk 00:10:28]} {[%emt 00:00:01]} 13. Qe5 {[%clk 00:15:06]}
{[%emt 00:00:07]} Qb6 {[%clk 00:09:16]} {[%emt 00:01:15]} 14. Nc3 {[%clk
00:15:05]} {[%emt 00:00:03]} Be6 {[%clk 00:08:13]} {[%emt 00:01:06]} 15. Na4
{[%clk 00:15:06]} {[%emt 00:00:03]} Qb4 {[%clk 00:07:39]} {[%emt 00:00:36]} 16.
Nc5 {[%clk 00:15:07]} {[%emt 00:00:02]} Bd5 {[%clk 00:07:37]} {[%emt 00:00:06]}
17. Qxe7 {[%clk 00:14:19]} {[%emt 00:00:50]} Qg4 {[%clk 00:04:10]} {[%emt
00:03:30]} 18. Bxd5 {[%clk 00:12:10]} {[%emt 00:02:12]} Nxd5 {[%clk 00:04:05]}
{[%emt 00:00:08]} 19. Qe5+ {[%clk 00:12:09]} {[%emt 00:00:04]} Nf6 {[%clk
00:04:07]} {[%emt 00:00:02]} 20. f3 {[%clk 00:12:02]} {[%emt 00:00:10]} Qc8
{[%clk 00:02:57]} {[%emt 00:01:12]} 21. Ne4 {[%clk 00:11:49]} {[%emt 00:00:16]}
Qc6 {[%clk 00:02:35]} {[%emt 00:00:25]} 22. Qxf6+ {[%clk 00:06:31]} {[%emt
00:05:21]} Qxf6 {[%clk 00:02:36]} {[%emt 00:00:01]} 23. Nxf6 {[%clk 00:06:33]}
{[%emt 00:00:01]} Kxf6 {[%clk 00:02:38]} {[%emt 00:00:01]} 24. Kf2 {[%clk
00:06:05]} {[%emt 00:00:31]} Rac8 {[%clk 00:01:58]} {[%emt 00:00:43]} 25. Rfc1
{[%clk 00:05:42]} {[%emt 00:00:26]} Rfd8 {[%clk 00:01:42]} {[%emt 00:00:19]} 26.
Ke1 {[%clk 00:05:43]} {[%emt 00:00:02]} Ke5 {[%clk 00:01:29]} {[%emt 00:00:16]}
27. Rxc8 {[%clk 00:05:26]} {[%emt 00:00:20]} Rxc8 {[%clk 00:01:31]} 28. Rd1
{[%clk 00:05:28]} Rc2 {[%clk 00:01:12]} {[%emt 00:00:22]} 29. Rd2 {[%clk
00:05:18]} {[%emt 00:00:13]} Rc1+ {[%clk 00:01:13]} {[%emt 00:00:02]} 30. Kf2
{[%clk 00:04:29]} {[%emt 00:00:52]} Rc7 {[%clk 00:00:58]} {[%emt 00:00:19]} 31.
Ke3 {[%clk 00:04:23]} {[%emt 00:00:08]} Rc3+ {[%clk 00:01:00]} {[%emt
00:00:01]} 32. Rd3 {[%clk 00:04:25]} Rc2 {[%clk 00:01:02]} 33. Rd2 {[%clk
00:03:39]} {[%emt 00:00:49]} Rc3+ {[%clk 00:01:03]} {[%emt 00:00:02]} 34. Kf2
{[%clk 00:03:41]} Rc7 {[%clk 00:01:04]} {[%emt 00:00:02]} 35. g4 {[%clk
00:03:14]} {[%emt 00:00:30]} g5 {[%clk 00:00:17]} {[%emt 00:00:50]} 36. Kg3
{[%clk 00:03:16]} {[%emt 00:00:02]} Ke6 {[%clk 00:00:07]} {[%emt 00:00:13]} 37.
h4 {[%clk 00:03:15]} {[%emt 00:00:03]} h6 {[%clk 00:00:08]} {[%emt 00:00:02]}
38. h5 {[%clk 00:03:11]} {[%emt 00:00:08]} Rc1 {[%clk 00:00:07]} {[%emt
00:00:03]} 39. Kf2 {[%clk 00:02:48]} {[%emt 00:00:26]} Rc7 {[%clk 00:00:09]}
{[%emt 00:00:01]} 40. Ke3 {[%clk 00:02:40]} {[%emt 00:00:11]} Ke5 {[%clk
00:00:09]} {[%emt 00:00:03]} 41. Rd8 {[%clk 00:02:17]} {[%emt 00:00:25]} Kf6
{[%clk 00:00:06]} {[%emt 00:00:06]} 42. Kd3 {[%clk 00:02:01]} {[%emt 00:00:19]}
a6 {[%clk 00:00:05]} {[%emt 00:00:05]} 43. Rd6+ {[%clk 00:01:54]} {[%emt
00:00:10]} Kg7 {[%clk 00:00:07]} {[%emt 00:00:01]} 44. Rb6 {[%clk 00:01:56]}
{[%emt 00:00:01]} Rd7+ {[%clk 00:00:05]} {[%emt 00:00:05]} 45. Ke3 {[%clk
00:01:53]} {[%emt 00:00:06]} Re7+ {[%clk 00:00:07]} {[%emt 00:00:01]} 46. Kf2
{[%clk 00:01:54]} {[%emt 00:00:01]} Rc7 {[%clk 00:00:08]} {[%emt 00:00:02]} 47.
a4 {[%clk 00:01:55]} {[%emt 00:00:02]} Kh7 {[%clk 00:00:07]} {[%emt 00:00:04]}
48. a5 {[%clk 00:01:57]} {[%emt 00:00:02]} Kg7 {[%clk 00:00:09]} 49. b4 {[%clk
00:01:58]} {[%emt 00:00:01]} Kh7 {[%clk 00:00:11]} {[%emt 00:00:01]} 50. Ke3
{[%clk 00:02:00]} Kg7 {[%clk 00:00:13]} {[%emt 00:00:01]} 51. Kd4 {[%clk
00:02:00]} {[%emt 00:00:02]} Rd7+ {[%clk 00:00:11]} {[%emt 00:00:05]} 52. Kc5
{[%clk 00:02:00]} {[%emt 00:00:02]} Re7 {[%clk 00:00:09]} {[%emt 00:00:05]} 53.
e4 {[%clk 00:01:47]} {[%emt 00:00:17]} f6 {[%clk 00:00:07]} {[%emt 00:00:05]}
54. Rd6 {[%clk 00:01:26]} {[%emt 00:00:23]} Kf7 {[%clk 00:00:07]} {[%emt
00:00:04]} 55. Kb6 {[%clk 00:01:26]} {[%emt 00:00:04]} Kg7 {[%clk 00:00:06]}
{[%emt 00:00:04]} 56. Rd8 {[%clk 00:01:26]} {[%emt 00:00:02]} Re5 {[%clk
00:00:04]} {[%emt 00:00:05]} 57. Rd7+ {[%clk 00:01:25]} {[%emt 00:00:03]} Kf8
58. Rxb7 1-0

[ePGN "0.1;DGT LiveChess/2.2.5"]

[Event "Rapide Futuroscope"]
[Site "Futuroscope, France"]
[Date "2019.12.01"]
[Round "6.4"]
[White "Salles, Louis"]
[Black "Fournier, Loic"]
[Result "0-1"]
[TimeControl "15' + 3''"]
[WhiteElo "2206"]
[BlackElo "2150"]

1. e4 {[%clk 00:15:04]} {[%emt 00:00:02]} c5 {[%clk 00:15:02]} {[%emt
00:00:04]} 2. Nf3 {[%clk 00:15:02]} {[%emt 00:00:05]} Nc6 {[%clk 00:15:04]} 3.
c3 {[%clk 00:14:53]} {[%emt 00:00:13]} d5 {[%clk 00:15:03]} {[%emt 00:00:06]} 4.
exd5 {[%clk 00:14:54]} Qxd5 {[%clk 00:15:04]} {[%emt 00:00:02]} 5. d4 {[%clk
00:14:55]} {[%emt 00:00:02]} Bg4 {[%clk 00:15:04]} {[%emt 00:00:03]} 6. Be2
{[%clk 00:14:57]} {[%emt 00:00:01]} e6 {[%clk 00:15:04]} {[%emt 00:00:03]} 7.
h3 {[%clk 00:14:51]} {[%emt 00:00:09]} Bh5 {[%clk 00:15:05]} {[%emt 00:00:02]}
8. c4 {[%clk 00:14:07]} {[%emt 00:00:48]} Qd6 {[%clk 00:14:21]} {[%emt
00:00:47]} 9. d5 {[%clk 00:11:02]} {[%emt 00:03:07]} exd5 {[%clk 00:12:20]}
{[%emt 00:02:05]} 10. cxd5 {[%clk 00:11:01]} {[%emt 00:00:04]} Bxf3 {[%clk
00:12:21]} {[%emt 00:00:02]} 11. Bxf3 {[%clk 00:10:52]} {[%emt 00:00:11]} Nd4
{[%clk 00:12:22]} {[%emt 00:00:02]} 12. O-O {[%clk 00:10:29]} {[%emt 00:00:26]}
Nf6 {[%clk 00:11:53]} {[%emt 00:00:33]} 13. Nc3 {[%clk 00:09:17]} {[%emt
00:01:15]} Be7 {[%clk 00:11:50]} {[%emt 00:00:05]} 14. Be3 {[%clk 00:08:45]}
{[%emt 00:00:36]} Nf5 {[%clk 00:10:44]} {[%emt 00:01:09]} 15. Bg5 {[%clk
00:04:39]} {[%emt 00:04:09]} O-O {[%clk 00:10:32]} {[%emt 00:00:16]} 16. Re1
{[%clk 00:03:40]} {[%emt 00:01:01]} Rad8 {[%clk 00:07:50]} {[%emt 00:02:45]} 17.
g4 {[%clk 00:03:20]} {[%emt 00:00:23]} Nd4 {[%clk 00:07:40]} {[%emt 00:00:13]}
18. Bg2 {[%clk 00:03:22]} {[%emt 00:00:02]} Nxd5 {[%clk 00:06:31]} {[%emt
00:01:12]} 19. Bxd5 {[%clk 00:00:30]} {[%emt 00:02:55]} Bxg5 {[%clk 00:06:28]}
{[%emt 00:00:06]} 20. Bxb7 {[%clk 00:00:26]} {[%emt 00:00:07]} Qb6 {[%clk
00:04:29]} {[%emt 00:02:01]} 21. Bg2 {[%clk 00:00:28]} {[%emt 00:00:02]} Qxb2
{[%clk 00:04:01]} {[%emt 00:00:32]} 22. Na4 {[%clk 00:00:19]} {[%emt 00:00:12]}
Qc2 {[%clk 00:03:02]} {[%emt 00:01:01]} 23. Re5 {[%clk 00:00:16]} {[%emt
00:00:06]} Qxd1+ {[%clk 00:01:33]} {[%emt 00:01:32]} 24. Rxd1 {[%clk 00:00:18]}
{[%emt 00:00:01]} Ne2+ {[%clk 00:01:36]} 25. Rxe2 {[%clk 00:00:14]} {[%emt
00:00:07]} Rxd1+ {[%clk 00:01:38]} 26. Bf1 {[%clk 00:00:16]} {[%emt 00:00:01]}
h6 {[%clk 00:01:20]} {[%emt 00:00:20]} 27. Nxc5 {[%clk 00:00:15]} {[%emt
00:00:03]} Rc8 {[%clk 00:01:14]} {[%emt 00:00:08]} 28. Nb3 {[%clk 00:00:10]}
{[%emt 00:00:09]} Rb1 {[%clk 00:00:44]} {[%emt 00:00:33]} 29. Kg2 {[%clk
00:00:09]} {[%emt 00:00:04]} Rd8 {[%clk 00:00:42]} {[%emt 00:00:06]} 30. Rc2
{[%clk 00:00:09]} {[%emt 00:00:04]} Rdd1 {[%clk 00:00:37]} {[%emt 00:00:07]} 31.
Bc4 {[%clk 00:00:10]} {[%emt 00:00:02]} Kf8 {[%clk 00:00:35]} {[%emt 00:00:06]}
32. Kf3 {[%clk 00:00:11]} {[%emt 00:00:02]} Rh1 {[%clk 00:00:32]} {[%emt
00:00:05]} 33. Ke4 {[%clk 00:00:11]} {[%emt 00:00:03]} Rxh3 {[%clk 00:00:33]}
{[%emt 00:00:02]} 34. f4 {[%clk 00:00:13]} {[%emt 00:00:01]} Re1+ {[%clk
00:00:34]} {[%emt 00:00:02]} 35. Kd4 {[%clk 00:00:07]} {[%emt 00:00:09]} Bxf4
{[%clk 00:00:35]} {[%emt 00:00:02]} 36. Kc5 {[%clk 00:00:09]} Re5+ {[%clk
00:00:32]} {[%emt 00:00:06]} 37. Kb4 {[%clk 00:00:09]} {[%emt 00:00:02]} Rg3
{[%clk 00:00:32]} {[%emt 00:00:04]} 38. Nd4 {[%clk 00:00:07]} {[%emt 00:00:05]}
Be3 {[%clk 00:00:33]} {[%emt 00:00:02]} 39. Nc6 {[%clk 00:00:08]} {[%emt
00:00:02]} Rg5 {[%clk 00:00:28]} {[%emt 00:00:08]} 40. Bb3 {[%clk 00:00:05]}
{[%emt 00:00:07]} R3xg4+ {[%clk 00:00:29]} {[%emt 00:00:02]} 41. Ka3 {[%clk
00:00:07]} Bc5+ {[%clk 00:00:31]} {[%emt 00:00:01]} 42. Kb2 {[%clk 00:00:09]}
h5 {[%clk 00:00:32]} {[%emt 00:00:02]} 43. Rd2 {[%clk 00:00:09]} {[%emt
00:00:03]} g6 {[%clk 00:00:31]} {[%emt 00:00:04]} 44. Rd8+ {[%clk 00:00:10]}
{[%emt 00:00:02]} Kg7 {[%clk 00:00:33]} 45. Rd7 {[%clk 00:00:12]} {[%emt
00:00:01]} Rf5 {[%clk 00:00:32]} {[%emt 00:00:05]} 46. Nd8 {[%clk 00:00:12]}
{[%emt 00:00:03]} Bd4+ {[%clk 00:00:23]} {[%emt 00:00:12]} 47. Kc2 {[%clk
00:00:11]} {[%emt 00:00:05]} Rf2+ {[%clk 00:00:15]} {[%emt 00:00:09]} 48. Kd3
{[%clk 00:00:13]} {[%emt 00:00:01]} Rf3+ {[%clk 00:00:17]} {[%emt 00:00:02]} 49.
Ke2 {[%clk 00:00:13]} {[%emt 00:00:03]} Re3+ {[%clk 00:00:19]} {[%emt
00:00:01]} 50. Kd2 {[%clk 00:00:14]} {[%emt 00:00:02]} Rg2+ {[%clk 00:00:20]}
{[%emt 00:00:01]} 51. Kd1 {[%clk 00:00:16]} Bc3 {[%clk 00:00:19]} {[%emt
00:00:05]} 52. Rxf7+ {[%clk 00:00:16]} {[%emt 00:00:02]} Kh6 {[%clk 00:00:21]}
{[%emt 00:00:02]} 53. Rf1 {[%clk 00:00:17]} {[%emt 00:00:02]} Rd2+ {[%clk
00:00:22]} {[%emt 00:00:02]} 54. Kc1 {[%clk 00:00:19]} {[%emt 00:00:01]} h4
{[%clk 00:00:22]} {[%emt 00:00:03]} 55. Nf7+ {[%clk 00:00:19]} {[%emt
00:00:04]} Kg7 {[%clk 00:00:24]} {[%emt 00:00:01]} 56. Ng5 {[%clk 00:00:19]}
{[%emt 00:00:03]} Rg2 {[%clk 00:00:20]} {[%emt 00:00:06]} 57. Ne6+ {[%clk
00:00:19]} {[%emt 00:00:03]} Kh6 {[%clk 00:00:21]} {[%emt 00:00:03]} 58. Bd5
{[%clk 00:00:15]} {[%emt 00:00:07]} Rd2 {[%clk 00:00:19]} {[%emt 00:00:05]} 59.
Bb3 {[%clk 00:00:17]} {[%emt 00:00:01]} Bb4 {[%clk 00:00:19]} {[%emt 00:00:03]}
60. Rh1 {[%clk 00:00:11]} {[%emt 00:00:09]} g5 {[%clk 00:00:20]} {[%emt
00:00:02]} 61. Rf1 {[%clk 00:00:12]} {[%emt 00:00:01]} Rd6 {[%clk 00:00:22]}
{[%emt 00:00:02]} 62. Rf6+ {[%clk 00:00:12]} {[%emt 00:00:03]} Kh7 {[%clk
00:00:22]} {[%emt 00:00:03]} 63. Bc2+ {[%clk 00:00:12]} {[%emt 00:00:02]} Rdd3
{[%clk 00:00:25]} {[%emt 00:00:51]} 64. Bxd3+ {[%clk 00:00:46]} {[%emt
00:01:28]} Rxd3 {[%clk 00:00:28]} 65. Nxg5+ {[%clk 00:00:46]} {[%emt 00:00:04]}
Kg7 {[%clk 00:00:30]} 66. Ra6 {[%clk 00:00:21]} {[%emt 00:00:27]} Ra3 {[%clk
00:00:20]} {[%emt 00:00:13]} 67. Rxa3 {[%clk 00:00:06]} {[%emt 00:00:18]} Bxa3+
{[%clk 00:00:23]} 68. Kd2 {[%clk 00:00:08]} Kg6 {[%clk 00:00:25]} 69. Nh3
{[%clk 00:00:09]} {[%emt 00:00:02]} Kf5 {[%clk 00:00:27]} {[%emt 00:00:01]} 70.
Ke2 {[%clk 00:00:10]} {[%emt 00:00:02]} Ke4 {[%clk 00:00:29]} 71. Kf2 {[%clk
00:00:04]} {[%emt 00:00:09]} Kd3 {[%clk 00:00:28]} {[%emt 00:00:04]} 72. Kf3
{[%clk 00:00:05]} {[%emt 00:00:03]} Kc2 {[%clk 00:00:30]} 73. Kg4 {[%clk
00:00:07]} Be7 {[%clk 00:00:31]} {[%emt 00:00:01]} 74. Nf4 {[%clk 00:00:09]}
{[%emt 00:00:02]} Kb2 {[%clk 00:00:31]} {[%emt 00:00:03]} 75. Nd5 {[%clk
00:00:09]} {[%emt 00:00:03]} Bd8 {[%clk 00:00:29]} {[%emt 00:00:05]} 76. a4
{[%clk 00:00:07]} {[%emt 00:00:05]} a5 {[%clk 00:00:21]} {[%emt 00:00:10]} 77.
Nf4 {[%clk 00:00:06]} {[%emt 00:00:04]} Kb3 {[%clk 00:00:16]} {[%emt 00:00:08]}
78. Ne6 {[%clk 00:00:06]} {[%emt 00:00:03]} Be7 {[%clk 00:00:15]} {[%emt
00:00:04]} 79. Nd4+ {[%clk 00:00:07]} {[%emt 00:00:02]} Kxa4 {[%clk 00:00:12]}
{[%emt 00:00:06]} 80. Nc6 {[%clk 00:00:09]} Bf6 {[%clk 00:00:14]} 81. Kf5
{[%clk 00:00:11]} {[%emt 00:00:01]} 0-1

[Event "Rapide Futuroscope"]
[Site "Futuroscope, France"]
[Date "2019.12.01"]
[Round "6.1"]
[White "Edouard, Romain"]
[Black "SOCHACKI, Christophe"]
[Result "1/2-1/2"]
[TimeControl "15' + 3''"]
[BlackTitle "IM"]
[BlackFideId "662569"]
[WhiteElo "2635"]
[BlackElo "2492"]

1. d4 {[%clk 00:15:05]} Nf6 {[%clk 00:15:02]} {[%emt 00:00:05]} 2. c4 {[%clk
00:15:06]} {[%emt 00:00:02]} e6 {[%clk 00:15:04]} {[%emt 00:00:01]} 3. Nc3
{[%clk 00:15:07]} {[%emt 00:00:03]} Bb4 {[%clk 00:15:05]} 4. Nf3 {[%clk
00:15:09]} {[%emt 00:00:01]} O-O {[%clk 00:15:06]} {[%emt 00:00:03]} 5. Bg5
{[%clk 00:15:04]} {[%emt 00:00:07]} c5 {[%clk 00:15:05]} {[%emt 00:00:06]} 6.
Rc1 {[%clk 00:14:52]} {[%emt 00:00:13]} h6 {[%clk 00:15:07]} {[%emt 00:00:01]}
7. Bh4 {[%clk 00:14:54]} {[%emt 00:00:02]} cxd4 {[%clk 00:15:09]} 8. Nxd4
{[%clk 00:14:48]} {[%emt 00:00:09]} d5 {[%clk 00:14:52]} {[%emt 00:00:20]} 9.
cxd5 {[%clk 00:14:47]} {[%emt 00:00:04]} g5 {[%clk 00:14:54]} {[%emt 00:00:01]}
10. Bg3 {[%clk 00:14:48]} {[%emt 00:00:02]} Qxd5 {[%clk 00:14:56]} {[%emt
00:00:02]} 11. e3 {[%clk 00:14:02]} {[%emt 00:00:49]} Qxa2 {[%clk 00:14:51]}
{[%emt 00:00:08]} 12. Bd3 {[%clk 00:12:26]} {[%emt 00:01:38]} Qxb2 {[%clk
00:14:25]} {[%emt 00:00:30]} 13. O-O {[%clk 00:12:27]} {[%emt 00:00:02]} Bxc3
{[%clk 00:13:37]} {[%emt 00:00:51]} 14. Rc2 {[%clk 00:12:28]} {[%emt 00:00:01]}
Qb4 {[%clk 00:12:30]} {[%emt 00:01:10]} 15. Nb5 {[%clk 00:12:29]} {[%emt
00:00:02]} e5 {[%clk 00:11:11]} {[%emt 00:01:21]} 16. Rxc3 {[%clk 00:12:29]}
{[%emt 00:00:02]} Nc6 {[%clk 00:11:13]} {[%emt 00:00:01]} 17. f4 {[%clk
00:12:30]} {[%emt 00:00:03]} Bg4 {[%clk 00:10:26]} {[%emt 00:00:50]} 18. Qc1
{[%clk 00:07:44]} {[%emt 00:04:50]} Rad8 {[%clk 00:08:22]} {[%emt 00:02:06]}
1/2-1/2